bitfinex/quotes_ETHUSD_20250626
["timestamp","ask_amount","ask_price","bid_price","bid_amount"]
[1750945007545,0.2048,2438.2,2437.8,0.86431257]
[1750945007750,0.2048,2437.9,2437.8,0.65951257]
[1750945009582,0.2048,2437.9,2437.8,4.7615718]
[1750945009886,0.2048,2438.1,2437.8,4.7615718]
[1750945010392,0.2048,2438.1,2437.9,4.10176164]
[1750945011169,0.2048,2438.1,2438.0,4.10172272]
[1750945011378,0.7406,2438.1,2437.5,0.8221]
[1750945011578,0.2048,2437.9,2437.5,5.12945938]
[1750945011814,0.2048,2437.9,2437.5,1.0269]
[1750945011995,0.2048,2437.8,2437.3,10.2048]
[1750945012301,0.2048,2437.8,2437.3,0.2048]
[1750945012820,0.2048,2437.8,2437.3,4.30769634]
[1750945013130,0.2048,2437.5,2437.1,0.2048]
[1750945013285,0.55,2437.5,2437.0,0.8214]
[1750945013609,0.2048,2437.3,2437.0,0.8214]
[1750945013813,0.2048,2437.3,2436.8,2.8288]
[1750945014108,0.2048,2437.3,2436.8,15.06954104]
[1750945014272,0.2048,2437.3,2436.9,4.10355707]
[1750945014682,0.2048,2437.3,2436.8,15.06946529]
[1750945014889,0.2048,2437.3,2436.8,0.2048]
[1750945015087,0.2048,2436.8,2436.3,0.9741]
[1750945015371,0.2048,2436.6,2436.2,0.2048]
[1750945015579,0.7406,2436.7,2436.1,0.7693]
[1750945015803,0.2048,2436.5,2436.1,0.7693]
[1750945016008,0.2048,2436.5,2436.2,4.1046392]
[1750945016203,0.2048,2436.5,2436.1,4.87411952]
[1750945016516,0.2048,2436.5,2436.3,4.1045055]
[1750945016718,0.55,2436.9,2436.4,4.10434516]
[1750945016926,0.2048,2436.6,2436.3,4.10454948]
[1750945017126,1.2906,2436.8,2436.0,5.96899223]
[1750945017279,0.2048,2436.3,2436.0,1.864]
[1750945017477,1.2906,2436.8,2436.2,4.1047533]
[1750945017719,0.2048,2436.5,2436.2,4.10473435]
[1750945018082,0.2048,2436.5,2436.0,6.17378778]
[1750945018281,1.2906,2436.8,2435.7,10.0]
[1750945018501,0.2048,2436.1,2436.0,4.10509031]
[1750945018698,0.2048,2436.1,2435.7,0.8107]
[1750945018699,0.2048,2436.1,2435.7,4.91623076]
[1750945018898,0.2048,2436.1,2435.7,0.8107]
[1750945019103,0.2048,2436.1,2435.8,4.10542033]
[1750945019616,0.2048,2436.1,2435.6,0.2048]
[1750945019834,0.55,2436.2,2435.3,4.86263763]
[1750945020124,0.2048,2435.7,2435.3,0.9612]
[1750945020481,0.7406,2436.1,2435.1,0.7664]
[1750945020687,0.2048,2435.6,2435.1,2.04784]
[1750945020905,0.7406,2436.7,2435.8,0.7664]
[1750945021104,0.7406,2436.7,2436.0,0.2048]
[1750945021311,0.2048,2436.5,2436.3,4.10458126]
[1750945021483,0.7406,2436.7,2436.1,4.10483424]
[1750945021684,0.2048,2436.3,2436.1,4.10483424]
[1750945021886,0.7406,2436.7,2435.9,4.10516394]
[1750945022220,0.7406,2436.7,2435.4,4.10600095]
[1750945022221,0.55,2436.0,2435.4,4.10600095]
[1750945022398,0.2048,2435.8,2435.4,4.10606561]
[1750945022599,0.55,2436.0,2435.2,0.7801]
[1750945022600,0.2048,2435.6,2435.2,0.7801]
[1750945022808,0.2048,2435.4,2435.2,4.10635272]
[1750945023201,0.2048,2435.4,2435.1,4.10658251]
[1750945023202,0.2048,2435.4,2435.1,14.10652121]
[1750945023421,0.2048,2435.4,2435.0,5.06416699]
[1750945023622,0.2048,2435.4,2435.0,0.2048]
[1750945023823,0.2048,2435.4,2435.1,4.10659895]
[1750945024415,0.2048,2435.4,2434.8,0.7526]
[1750945024614,0.55,2435.3,2434.8,14.85960017]
[1750945024818,0.55,2435.4,2434.7,1.02531474]
[1750945025022,4.10347246,2437.0,2434.7,1.02531474]
[1750945025023,0.7406,2436.0,2435.5,4.10583696]
[1750945025227,0.7406,2436.0,2435.6,4.10564727]
[1750945025402,0.7406,2436.0,2435.4,4.10607366]
[1750945025403,0.7406,2436.0,2435.0,16.77674283]
[1750945025751,0.55,2435.9,2435.4,4.10603604]
[1750945026026,0.55,2435.9,2435.0,14.91671544]
[1750945026229,0.55,2435.9,2435.0,13.20596479]
[1750945026429,0.55,2435.9,2435.4,4.10607623]
[1750945026598,0.55,2435.9,2435.3,4.10622667]
[1750945026798,0.55,2435.9,2435.3,4.10625606]
[1750945027224,0.55,2435.9,2435.1,4.10660753]
[1750945027432,0.55,2435.9,2435.4,4.10598953]
[1750945027628,0.55,2435.9,2435.3,4.10620611]
[1750945027807,0.55,2435.9,2435.4,4.10605665]
[1750945028330,1.861,2435.9,2435.4,4.10602422]
[1750945028648,0.55,2435.8,2435.1,1.73125723]
[1750945028926,0.55,2435.6,2434.7,1.02531474]
[1750945029335,0.55,2435.6,2435.0,4.10666025]
[1750945029705,0.7406,2435.7,2434.9,4.10694484]
[1750945029932,2.6016,2435.7,2435.0,1.21609448]
[1750945030228,2.6016,2435.7,2435.4,4.10608702]
[1750945030431,2.6016,2435.7,2435.2,4.10631931]
[1750945030737,0.55,2435.6,2435.0,4.10665343]
[1750945030900,0.55,2435.6,2434.8,4.10705113]
[1750945031098,0.55,2435.6,2434.7,11.78091474]
[1750945031309,0.55,2435.6,2435.0,4.10667736]
[1750945031696,0.55,2435.4,2434.7,11.02531474]
[1750945031910,0.55,2435.4,2434.8,4.10709696]
[1750945032110,0.55,2435.4,2434.7,10.0]
[1750945032432,0.55,2435.4,2434.6,1.68400993]
[1750945032433,0.7406,2435.4,2434.6,1.68400993]
[1750945032631,0.55,2435.3,2435.0,4.10665579]
[1750945032807,0.55,2435.3,2434.6,1.68400993]
[1750945032808,0.55,2435.3,2434.7,4.1071627]
[1750945033016,0.55,2435.3,2434.8,4.10710987]
[1750945033197,0.55,2435.3,2434.6,5.79144015]
[1750945033531,0.55,2435.3,2434.6,1.68400993]
[1750945033745,0.786466,2435.3,2434.7,4.10718182]
[1750945034105,0.786466,2435.3,2434.8,4.10709259]
[1750945034501,0.2048,2434.9,2434.8,4.10709259]
[1750945034728,1.81466,2435.4,2434.8,4.10709259]
[1750945034729,0.7406,2435.4,2435.1,4.10647905]
[1750945034935,0.2048,2435.2,2435.1,4.10647905]
[1750945035433,0.2048,2435.2,2435.0,4.10677618]
[1750945035635,0.2048,2435.2,2435.1,4.10660753]
[1750945035838,0.7406,2435.7,2435.3,4.10614769]
[1750945036008,0.2048,2435.5,2435.3,4.10613174]
[1750945036209,0.2048,2435.5,2435.4,4.10610166]
[1750945036532,0.2048,2435.2,2434.7,4.1071191]
[1750945036748,0.2048,2435.0,2434.7,4.1071191]
[1750945036948,0.7406,2435.4,2435.1,4.10647094]
[1750945037250,0.7406,2435.4,2434.8,4.10709432]
[1750945037251,0.2048,2435.2,2434.8,0.2048]
[1750945037418,0.7406,2435.4,2434.8,0.2048]
[1750945037419,0.2048,2435.0,2434.8,4.10711265]
[1750945037620,0.2048,2435.0,2434.6,11.68400993]
[1750945037830,0.7406,2434.9,2434.6,1.68400993]
[1750945038033,0.55,2434.8,2434.6,1.68400993]
[1750945038254,0.55,2434.3,2433.5,10.0]
[1750945038475,0.55,2434.3,2432.9,4.91110645]
[1750945038476,10.0,2434.1,2432.9,4.91110645]
[1750945038618,2.88751318,2434.0,2433.3,4.10955116]
[1750945038822,2.88751318,2434.0,2432.9,1.3139433]
[1750945038823,2.88751318,2434.0,2433.0,4.10999138]
[1750945039049,2.88751318,2434.0,2432.9,5.42418133]
[1750945039217,4.10902942,2433.7,2432.8,0.2193265]
[1750945039433,2.411,2433.6,2432.8,0.2193265]
[1750945039755,0.7406,2433.3,2432.8,0.2193265]
[1750945040266,0.7406,2433.3,2432.8,4.32979557]
[1750945040436,0.7406,2433.3,2432.8,0.2193265]
[1750945042884,0.7406,2433.1,2432.8,0.2193265]
[1750945043241,1.862,2433.0,2432.8,0.2193265]
[1750945043442,0.7406,2433.4,2432.8,0.2193265]
[1750945043646,0.7406,2433.9,2432.8,0.2193265]
[1750945043863,1.16055132,2433.9,2433.0,4.11015207]
[1750945044056,1.16055132,2433.9,2433.2,4.10981423]
[1750945044275,1.16055132,2433.9,2433.6,4.10903845]
[1750945044479,1.16055132,2433.9,2433.6,4.10903397]
[1750945044779,1.16055132,2433.9,2433.3,4.10957079]
[1750945044993,0.30225513,2433.8,2433.1,10.0]
[1750945045144,0.30225513,2433.8,2432.9,4.11020424]
[1750945045345,0.30225513,2433.8,2432.9,4.11021822]
[1750945045583,0.30225513,2433.8,2433.0,4.11006177]
[1750945046077,0.7406,2433.7,2432.8,0.2193265]
[1750945046582,0.7406,2433.7,2432.8,4.32970776]
[1750945046951,0.7406,2433.7,2433.2,4.10967657]
[1750945047189,1.84488551,2433.7,2433.5,4.10925744]
[1750945047354,2.6036,2433.7,2433.5,4.10925744]
[1750945047683,0.7406,2433.7,2433.4,4.10946183]
[1750945047870,0.7406,2433.7,2433.0,0.7513]
[1750945047871,0.7406,2433.7,2433.5,4.10922237]
[1750945048268,0.7406,2434.0,2433.6,4.10902099]
[1750945048469,0.7406,2434.0,2433.0,10.7513]
[1750945048470,1.863,2433.9,2433.5,4.10927933]
[1750945048677,0.2048,2433.6,2433.5,4.10927933]
[1750945048855,0.2048,2433.6,2433.2,4.314496]
[1750945049053,0.2048,2433.6,2433.3,4.10955933]
[1750945049694,0.2048,2433.6,2433.2,0.2048]
[1750945049876,0.2048,2433.4,2433.2,4.10971413]
[1750945050078,0.2048,2433.4,2432.9,4.31502298]
[1750945050372,0.2048,2433.4,2433.1,4.10998314]
[1750945050552,0.2048,2433.4,2433.0,4.11015207]
[1750945050553,0.2048,2433.4,2433.2,4.10979477]
[1750945051250,0.7406,2433.8,2433.2,4.10965389]
[1750945051471,0.2048,2433.8,2433.7,4.10885863]
[1750945051987,0.2048,2433.8,2433.3,0.2048]
[1750945052188,0.2048,2433.6,2433.2,4.90598281]
[1750945052491,0.2048,2433.6,2433.1,0.2048]
[1750945052492,0.2048,2433.4,2433.3,4.10964533]
[1750945052676,0.2048,2433.4,2433.2,4.10974204]
[1750945053255,0.2048,2433.4,2433.1,10.2048]
[1750945053483,0.2048,2433.4,2433.1,4.31475354]
[1750945053697,0.2048,2433.4,2433.2,4.10977954]
[1750945054257,0.2048,2433.4,2433.1,4.10989391]
[1750945054560,0.2048,2433.4,2433.1,14.10989796]
[1750945054883,0.2048,2433.4,2433.1,4.10989796]
[1750945055088,0.2048,2433.6,2433.1,0.2048]
[1750945055272,0.2048,2433.4,2433.2,4.10973324]
[1750945055479,0.2048,2433.4,2433.1,4.10990066]
[1750945055676,0.2048,2433.4,2432.9,4.31502548]
[1750945055870,0.2048,2433.4,2433.2,4.10977957]
[1750945056658,0.2048,2433.4,2433.3,4.10964533]
[1750945056886,0.2048,2433.7,2433.3,0.7806]
[1750945057117,0.2048,2433.7,2433.6,4.10913872]
[1750945057619,0.2048,2433.9,2433.8,4.10880105]
[1750945057782,0.2048,2433.9,2433.5,4.31404093]
[1750945057979,0.2048,2433.9,2433.5,0.2048]
[1750945058217,0.2048,2433.8,2433.5,4.10916529]
[1750945058512,0.2048,2433.8,2433.5,4.10917995]
[1750945058712,0.2048,2433.8,2433.6,4.10902543]
[1750945058924,0.2048,2433.8,2433.7,4.10896988]
[1750945059096,1.71410574,2434.1,2433.8,4.10872159]
[1750945059280,1.71410574,2434.1,2433.3,0.7806]
[1750945059281,1.17830574,2434.0,2433.6,0.2048]
[1750945059486,0.97350574,2434.0,2433.6,4.10905922]
[1750945059703,0.2048,2433.9,2433.4,0.2048]
[1750945059913,0.2048,2433.7,2433.4,4.10934834]
[1750945060116,0.7406,2433.6,2433.2,0.2048]
[1750945060412,0.7406,2433.6,2433.2,4.3145263]
[1750945060580,0.7406,2433.6,2433.0,6.00809646]
[1750945060581,0.7406,2433.6,2433.0,11.898]
[1750945060787,0.7406,2433.6,2432.8,0.9972265]
[1750945061015,0.2048,2433.3,2433.0,4.1100038]
[1750945061198,0.2048,2433.3,2432.9,4.11027914]
[1750945061721,2.6386,2433.6,2432.8,0.2193265]
[1750945061722,0.7406,2433.2,2432.8,0.2193265]
[1750945061885,0.2048,2433.1,2432.8,0.2193265]
[1750945062087,0.7406,2433.2,2432.8,0.2193265]
[1750945065215,0.26386,2433.1,2432.9,4.11021062]
[1750945065419,0.7406,2433.2,2432.8,4.3297434]
[1750945065617,0.7406,2433.5,2432.8,0.2193265]
[1750945065818,0.7406,2433.7,2433.3,4.10955212]
[1750945066119,0.7406,2433.7,2433.3,4.10951694]
[1750945066325,0.7406,2433.7,2433.2,4.10980515]
[1750945066621,0.97683912,2433.6,2432.9,4.87718797]
[1750945066794,1.10181057,2434.1,2433.1,4.10995706]
[1750945067000,0.9768688,2434.0,2433.5,4.10921609]
[1750945067186,0.9768688,2433.9,2433.5,4.10921609]
[1750945067515,0.9768688,2433.8,2433.6,4.10911597]
[1750945067718,0.9768688,2433.7,2433.5,4.10923791]
[1750945068032,4.10746599,2434.6,2433.2,4.91030356]
[1750945068033,0.97795083,2434.0,2433.2,4.91030356]
[1750945068316,1.71855083,2433.9,2433.3,4.1096175]
[1750945068518,1.71855083,2433.9,2433.2,4.91035305]
[1750945068519,0.97795083,2433.8,2433.2,4.91035305]
[1750945068823,0.7406,2433.9,2433.4,4.1093155]
[1750945069020,0.97850162,2433.8,2433.4,4.1093155]
[1750945069188,0.7406,2433.9,2433.5,4.10929289]
[1750945069390,0.97850178,2433.8,2433.5,4.10929289]
[1750945069687,0.7406,2433.9,2433.3,4.10954552]
[1750945069889,0.97858549,2433.8,2433.3,4.10954552]
[1750945070088,1.00456,2433.9,2433.4,4.10944958]
[1750945070289,0.97858624,2433.8,2433.3,4.1095735]
[1750945070485,1.00456,2433.9,2433.4,4.10945483]
[1750945070711,0.97863939,2433.8,2433.5,4.10925389]
[1750945070920,1.899,2434.2,2433.6,4.1089849]
[1750945071094,1.899,2434.2,2433.2,4.9103444]
[1750945071095,0.7406,2434.0,2433.3,4.10954664]
[1750945071299,0.97861635,2433.9,2433.3,4.10954664]
[1750945071496,0.97861635,2433.8,2433.2,14.10973538]
[1750945071709,0.7406,2434.0,2433.2,10.0]
[1750945071917,0.97860208,2433.9,2433.2,14.10976847]
[1750945072121,0.2048,2433.5,2433.2,14.10976847]
[1750945072317,0.2048,2433.5,2433.1,0.2048]
[1750945072318,0.9454,2433.5,2433.1,0.2048]
[1750945072536,0.9454,2433.5,2433.0,14.11004991]
[1750945072537,0.2048,2433.3,2433.0,14.11004991]
[1750945073510,0.2048,2433.3,2433.2,4.10981423]
[1750945073709,0.2048,2433.3,2433.0,11.94031013]
[1750945073710,0.2048,2433.3,2433.1,4.10989481]
[1750945073913,0.2048,2433.3,2433.2,4.10981423]
[1750945074339,0.97834617,2433.7,2433.3,4.10951361]
[1750945074508,0.7406,2433.8,2433.4,4.10943104]
[1750945074509,0.2048,2433.5,2433.4,4.10943104]
[1750945074851,0.97835258,2433.7,2433.6,4.10913872]
[1750945075011,0.2048,2433.9,2433.7,4.10891058]
[1750945075212,0.97835258,2433.8,2433.7,4.10891058]
[1750945075410,0.97835258,2433.8,2433.6,4.1090492]
[1750945075705,0.97835258,2433.8,2433.5,5.14574651]
[1750945075706,0.97835258,2433.8,2433.7,4.10896988]
[1750945076128,0.2048,2433.9,2433.8,4.10880105]
[1750945076533,0.97835258,2434.3,2433.9,4.10857019]
[1750945076706,1.18315258,2434.2,2433.9,4.10857019]
[1750945077236,0.2048,2434.2,2433.9,4.10857019]
[1750945077439,0.2048,2434.2,2434.0,4.10836]
[1750945077607,1.18315258,2434.2,2433.9,4.10858189]
[1750945077801,1.18315258,2434.2,2433.8,4.10880105]
[1750945078037,0.97835258,2434.2,2434.1,4.10829464]
[1750945078239,15.30452177,2435.8,2434.4,4.10773615]
[1750945078240,0.2048,2434.6,2434.4,4.10773615]
[1750945078404,0.97835258,2434.5,2434.4,4.10773615]
[1750945078600,0.97835258,2434.5,2434.1,4.31302951]
[1750945078805,0.97835258,2434.5,2434.2,4.10803864]
[1750945079127,0.97835258,2434.5,2434.1,0.2048]
[1750945079339,0.2048,2434.6,2434.3,4.10779749]
[1750945079541,0.2048,2434.6,2434.2,4.10797258]
[1750945079737,0.97835258,2434.7,2434.3,4.10780933]
[1750945079941,0.97873794,2434.6,2434.5,4.10761963]
[1750945080137,0.97873794,2434.7,2434.6,4.10732122]
[1750945080446,0.97873794,2434.7,2434.4,4.10770126]
[1750945080613,0.97873794,2434.7,2434.3,4.3127437]
[1750945080815,0.97873794,2434.7,2434.4,4.10770271]
[1750945081150,0.2048,2434.8,2434.4,4.10770271]
[1750945081338,0.97873794,2434.8,2434.1,16.00618881]
[1750945081522,0.2048,2434.6,2434.3,4.10795711]
[1750945081931,0.2048,2434.6,2434.5,4.10761963]
[1750945082134,0.2048,2434.9,2434.4,0.9949]
[1750945082336,0.2048,2435.1,2434.6,4.31216129]
[1750945082555,0.7406,2435.3,2434.4,4.89776041]
[1750945082556,0.97873794,2435.0,2434.4,4.89776041]
[1750945082757,1.18353794,2434.9,2434.4,5.10263128]
[1750945082956,0.2048,2434.9,2434.5,4.10752491]
[1750945083162,0.2048,2434.9,2434.5,4.10753238]
[1750945083649,1.18353794,2434.9,2434.5,4.10753238]
[1750945083845,0.2048,2434.9,2434.6,4.10743825]
[1750945084180,0.2048,2434.9,2434.8,4.10711352]
[1750945084470,0.2048,2435.2,2435.1,4.10660753]
[1750945084634,0.2048,2435.4,2434.9,0.8166]
[1750945084842,1.18353794,2435.4,2434.9,5.12820873]
[1750945085147,1.18353794,2435.4,2435.2,4.1063466]
[1750945085148,0.2048,2435.4,2435.2,4.1063466]
[1750945085345,0.2048,2435.4,2435.3,4.10627027]
[1750945085565,0.2048,2435.4,2435.1,4.10660753]
[1750945085774,0.2048,2435.4,2434.9,1.0214]
[1750945086064,0.2048,2435.4,2435.0,4.10672082]
[1750945086249,0.2048,2435.4,2435.2,4.10640571]
[1750945086452,0.2048,2435.4,2435.1,4.10652373]
[1750945086651,0.2048,2435.4,2435.0,4.10672299]
[1750945086871,0.7406,2435.6,2435.2,4.10635157]
[1750945087075,0.9454,2435.6,2435.2,4.10635157]
[1750945087387,0.9454,2435.6,2435.1,4.3113203]
[1750945087585,2.12351379,2435.6,2435.1,0.2048]
[1750945088185,0.2048,2435.4,2435.0,4.10675776]
[1750945088348,0.2048,2435.4,2434.9,4.31164995]
[1750945088548,0.2048,2435.4,2435.0,4.1067695]
[1750945088765,0.2048,2435.4,2435.2,4.10643045]
[1750945088965,0.2048,2435.4,2435.1,4.10653542]
[1750945089160,0.2048,2435.4,2434.9,0.2048]
[1750945089684,0.2048,2435.4,2434.7,16.00025036]
[1750945089685,0.2048,2435.2,2434.8,4.1070951]
[1750945089886,0.7406,2435.6,2434.8,2.80821883]
[1750945090098,1.71639931,2435.9,2435.2,0.7992]
[1750945090301,0.2048,2435.7,2435.3,4.10625924]
[1750945090505,0.2048,2435.7,2435.1,0.2048]
[1750945090791,0.2048,2435.7,2435.1,4.31131409]
[1750945090991,0.2048,2435.7,2435.1,0.2048]
[1750945093196,0.2048,2434.9,2434.5,0.2048]
[1750945093484,0.2048,2434.9,2434.7,4.10713684]
[1750945093722,0.7406,2435.4,2434.8,4.10701674]
[1750945093857,0.2048,2435.1,2434.8,4.10701674]
[1750945094055,0.7406,2435.7,2434.9,4.10694484]
[1750945094286,0.2048,2435.6,2435.2,4.10642409]
[1750945094590,1.893,2436.0,2435.0,0.69873448]
[1750945094591,0.7406,2435.9,2435.5,4.10593307]
[1750945094889,0.2048,2435.8,2435.4,4.10601969]
[1750945095058,0.28384,2435.8,2435.1,4.10652943]
[1750945095260,0.2048,2435.6,2435.2,4.31112906]
[1750945095465,0.2048,2435.6,2435.3,4.10627027]
[1750945095794,3.25573272,2437.5,2435.8,0.7857]
[1750945095959,0.34272871,2437.4,2437.3,4.10290075]
[1750945096159,0.34272871,2437.4,2437.3,46.42684166]
[1750945096396,0.34272871,2437.4,2437.3,41.38880132]
[1750945096708,0.34272871,2437.4,2437.3,6.25099262]
[1750945096903,0.34272871,2437.4,2437.1,0.55]
[1750945097215,0.34272871,2437.4,2436.8,0.8035]
[1750945097562,0.34272871,2437.4,2436.8,10.8035]
[1750945097787,0.34272871,2437.4,2437.1,4.10316793]
[1750945097981,0.34272871,2437.4,2437.3,4.10290075]
[1750945098395,0.34272871,2437.4,2437.3,5.40649083]
[1750945098595,0.7406,2438.1,2437.6,4.10228458]
[1750945098795,0.7406,2438.1,2437.4,4.10259645]
[1750945098997,0.7406,2438.1,2437.5,4.10253814]
[1750945099305,0.7406,2438.1,2437.6,1.892]
[1750945099464,0.7406,2438.6,2437.7,7.039]
[1750945099669,0.7406,2438.6,2438.1,4.10145024]
[1750945100000,0.7406,2438.6,2437.8,11.30333619]
[1750945100200,0.7406,2439.2,2438.5,4.10072733]
[1750945100372,0.7406,2439.2,2438.7,4.10038944]
[1750945100589,4.23085254,2439.6,2439.0,9.60819653]
[1750945100793,4.23085254,2439.9,2439.4,4.09921721]
[1750945101109,5.69753226,2440.6,2439.5,8.941]
[1750945101110,0.34272871,2439.8,2439.5,8.941]
[1750945101609,0.34272871,2439.8,2439.5,8.939]
[1750945101765,0.34272871,2439.8,2439.1,2.16852465]
[1750945101974,0.34272871,2439.8,2439.3,4.09953675]
[1750945102369,0.34272871,2439.8,2438.9,10.8068]
[1750945102680,0.7406,2439.7,2439.1,10.0]
[1750945103204,0.7406,2439.7,2439.1,8.937]
[1750945103382,0.7406,2439.7,2438.9,10.8068]
[1750945103582,0.7406,2439.7,2439.0,8.936]
[1750945103784,1.22451399,2439.7,2439.0,8.936]
[1750945104109,0.7406,2439.7,2439.3,4.09950219]
[1750945104281,10.0,2440.9,2439.1,4.0998729]
[1750945104282,0.7406,2440.2,2439.2,10.55]
[1750945104469,0.7406,2440.2,2439.9,4.09852248]
[1750945104672,0.7406,2440.5,2439.6,8.935]
[1750945104865,0.7406,2440.5,2440.1,4.09809275]
[1750945105102,0.7406,2440.5,2439.6,8.935]
[1750945105277,0.7406,2440.5,2439.6,7.03399147]
[1750945105482,0.7406,2440.5,2439.7,8.934]
[1750945105683,0.2048,2440.2,2439.7,0.2048]
[1750945106298,0.2048,2440.2,2439.4,4.09927179]
[1750945106299,0.7406,2440.5,2439.4,10.0]
[1750945106472,0.2048,2439.8,2439.4,10.2048]
[1750945106870,0.7406,2439.8,2438.9,0.8096]
[1750945107074,0.2048,2439.6,2439.2,10.2048]
[1750945108411,0.7406,2439.8,2438.9,4.90969327]
[1750945108706,0.2048,2439.4,2439.0,0.2048]
[1750945108923,0.2048,2439.4,2439.0,10.2048]
[1750945109503,4.83930472,2439.8,2438.7,8.928]
[1750945109678,0.2048,2439.1,2438.7,13.23329854]
[1750945109874,0.2048,2439.1,2438.7,9.1328]
[1750945110102,0.2048,2439.1,2438.7,4.30533971]
[1750945110297,0.2048,2439.1,2438.8,10.0]
[1750945110497,0.2048,2439.1,2438.7,10.2048]
[1750945110915,0.9454,2439.1,2438.7,0.2048]
[1750945111214,0.2048,2438.8,2438.6,9.849]
[1750945111420,0.2048,2438.8,2438.4,0.2048]
[1750945112088,0.2048,2439.0,2438.5,4.30568168]
[1750945112912,0.2048,2438.8,2438.5,4.10071459]
[1750945113079,0.2048,2438.8,2438.4,4.10093287]
[1750945113283,0.2048,2438.8,2438.3,14.30594322]
[1750945113815,0.2048,2438.8,2438.3,10.2048]
[1750945114022,0.2048,2438.8,2438.3,0.2048]
[1750945114325,0.2048,2438.4,2438.0,0.2048]
[1750945114541,0.2048,2438.4,2438.1,10.0]
[1750945115126,0.2048,2438.4,2438.3,4.10121806]
[1750945115330,0.2048,2438.4,2438.2,4.1013087]
[1750945115628,0.2048,2438.6,2438.1,0.2048]
[1750945115780,1.2906,2438.9,2438.0,10.0]
[1750945115980,0.2048,2438.2,2437.9,4.10179456]
[1750945116205,0.2048,2438.2,2437.8,4.30677856]
[1750945116520,0.2048,2438.2,2437.9,10.0]
[1750945116819,0.2048,2438.2,2437.8,4.30677856]
[1750945116820,0.2048,2438.2,2437.8,10.2048]
[1750945117184,0.7406,2438.3,2437.8,10.0]
[1750945117382,0.2048,2438.1,2437.8,14.10196359]
[1750945117615,0.2048,2438.1,2437.8,10.0]
[1750945118512,0.2048,2438.1,2437.8,14.10199086]
[1750945118912,0.2048,2438.1,2437.9,4.10185077]
[1750945119215,0.2048,2438.1,2437.8,10.0]
[1750945119422,0.2048,2438.1,2437.8,14.1019431]
[1750945120115,0.2048,2438.1,2438.0,4.10172272]
[1750945120292,0.2048,2438.1,2437.8,4.10193526]
[1750945120496,0.2048,2438.1,2437.9,4.10188657]
[1750945120685,0.2048,2438.1,2437.8,4.10192645]
[1750945120887,0.2048,2438.1,2437.7,14.10214942]
[1750945121624,0.7406,2438.2,2437.3,1.67588792]
[1750945121829,0.55,2437.9,2437.3,1.67588792]
[1750945121981,0.7406,2437.8,2437.3,1.67588792]
[1750945123509,0.7406,2437.8,2437.4,4.10272451]
[1750945123893,0.7406,2437.8,2437.5,4.10254611]
[1750945124093,0.7406,2437.8,2437.4,4.10266373]
[1750945124495,0.7406,2437.8,2437.4,4.10264657]
[1750945124694,0.7406,2437.8,2437.5,4.1025133]
[1750945124893,0.7406,2437.8,2437.3,5.77873251]
[1750945125389,0.7406,2437.8,2437.5,4.10247081]
[1750945125589,0.7406,2437.8,2437.5,1.1]
[1750945125816,0.7406,2437.8,2437.6,4.10237773]
[1750945126123,0.7406,2437.8,2437.3,5.77867674]
[1750945126812,0.7406,2437.8,2437.3,1.67588792]
[1750945127010,0.7406,2437.8,2437.3,5.77870111]
[1750945127590,0.7406,2437.8,2437.3,5.77878657]
[1750945127790,0.7406,2437.8,2437.6,4.10236374]
[1750945128197,0.7406,2437.8,2437.5,4.10250481]
[1750945128786,0.7406,2437.8,2437.4,4.10268764]
[1750945128990,0.7406,2437.8,2437.3,1.67588792]
[1750945128991,0.7406,2437.8,2437.7,4.1022275]
[1750945129220,0.7406,2437.8,2437.5,4.10248373]
[1750945129601,0.7406,2437.8,2437.6,4.10237963]
[1750945129786,0.7406,2437.8,2437.7,4.1022275]
[1750945129991,0.7406,2437.8,2437.6,4.10230694]
[1750945130227,0.7406,2437.8,2437.7,4.1022275]
[1750945130398,0.7406,2438.2,2437.9,4.10189004]
[1750945130605,0.7406,2438.2,2437.8,4.10199841]
[1750945130805,0.7406,2438.2,2437.7,4.10216351]
[1750945131013,0.7406,2438.2,2437.8,4.10205395]
[1750945131215,0.7406,2438.2,2437.5,4.10251957]
[1750945131407,0.7406,2438.2,2437.6,2.22415196]
[1750945131616,0.2048,2438.0,2437.9,4.10179816]
[1750945131948,0.2048,2438.0,2437.6,4.3070665]
[1750945132117,0.7406,2438.2,2437.5,4.10244795]
[1750945132427,0.2048,2437.7,2437.5,4.10244795]
[1750945132733,0.2048,2437.7,2437.5,1.1]
[1750945132926,0.9454,2437.7,2437.5,1.1]
[1750945133122,0.7406,2437.7,2437.3,1.67588792]
[1750945133502,1.933,2437.8,2437.3,1.67588792]
[1750945133503,0.7406,2437.5,2437.3,1.67588792]
[1750945137704,0.7406,2437.5,2436.3,11.77]
[1750945137705,0.7406,2437.1,2436.0,0.8141]
[1750945137905,1.933,2437.0,2436.2,4.10460736]
[1750945138125,0.2048,2436.5,2436.2,4.10460736]
[1750945138312,0.2048,2436.5,2436.1,4.30963859]
[1750945138525,0.2048,2436.5,2436.1,6.26298297]
[1750945138706,0.2048,2436.5,2436.3,4.10456333]
[1750945138907,0.2048,2436.5,2436.4,4.10441635]
[1750945139314,0.7406,2436.8,2436.1,6.05813999]
[1750945139507,0.2048,2436.7,2436.5,4.10417272]
[1750945139838,0.2048,2436.7,2436.5,4.10418782]
[1750945140047,0.2048,2436.7,2436.2,0.2048]
[1750945140248,0.2048,2436.5,2436.2,4.10467112]
[1750945140402,0.2048,2436.5,2436.3,4.10456847]
[1750945140936,1.933,2437.0,2436.5,4.10419843]
[1750945141144,0.7406,2436.6,2436.2,0.2048]
[1750945141345,0.7406,2436.6,2435.9,4.10525883]
[1750945141544,0.7406,2436.6,2435.8,4.78454904]
[1750945141709,0.7406,2436.6,2435.9,4.10517968]
[1750945141904,0.7406,2436.6,2435.9,2.16193329]
[1750945142244,0.7406,2436.6,2436.0,4.10503012]
[1750945142537,0.7406,2436.6,2435.8,4.78449957]
[1750945142538,0.7406,2436.6,2435.8,10.0]
[1750945143110,0.7406,2436.6,2435.7,6.03955222]
[1750945143314,0.7406,2436.6,2435.8,14.10534243]
[1750945143513,0.7406,2436.6,2435.7,6.03956711]